bitfinex/quotes_BTCUSD_20241024
["timestamp","ask_amount","ask_price","bid_price","bid_amount"]
[1729800781630,9.00719025,68177.0,68176.0,0.85915871]
[1729800782637,9.00719025,68177.0,68176.0,1.02076805]
[1729800783659,9.00719025,68177.0,68176.0,1.12326226]
[1729800784725,9.00719025,68177.0,68176.0,0.95510293]
[1729800788318,9.00719025,68177.0,68176.0,1.04265643]
[1729800788734,9.00719025,68177.0,68176.0,0.95510293]
[1729800789609,9.00719025,68177.0,68176.0,0.95513895]
[1729800790286,9.00719025,68177.0,68176.0,0.95313895]
[1729800790695,9.00719025,68177.0,68176.0,0.95513895]
[1729800791160,9.00719025,68177.0,68176.0,0.79349359]
[1729800791609,9.00719025,68177.0,68176.0,0.95316491]
[1729800791926,9.00719025,68177.0,68176.0,0.79349359]
[1729800792983,9.00719025,68177.0,68176.0,0.95515132]
[1729800794021,9.00719025,68177.0,68176.0,0.79349359]
[1729800794742,9.00719025,68177.0,68176.0,0.95517555]
[1729800796662,9.00719025,68177.0,68176.0,1.05765263]
[1729800797012,9.00719025,68177.0,68176.0,1.16713992]
[1729800797226,9.00719025,68177.0,68176.0,1.05765263]
[1729800797654,8.97785525,68177.0,68176.0,1.20576634]
[1729800797873,8.47632995,68177.0,68176.0,1.21250684]
[1729800798090,8.46159581,68177.0,68176.0,1.21250684]
[1729800798531,8.37359081,68177.0,68176.0,1.21250684]
[1729800799170,8.31492081,68177.0,68176.0,1.21250684]
[1729800799576,8.28558581,68177.0,68176.0,1.11001263]
[1729800800211,8.28558581,68177.0,68176.0,1.219309]
[1729800801251,8.28558581,68177.0,68176.0,1.11001263]
[1729800802079,8.28558581,68177.0,68176.0,1.219309]
[1729800802286,8.28558581,68177.0,68176.0,1.11001263]
[1729800806929,8.28641181,68177.0,68176.0,1.11001263]
[1729800807616,8.28641181,68177.0,68176.0,1.10960047]
[1729800809650,8.28641181,68177.0,68176.0,1.15513799]
[1729800809862,8.28641181,68177.0,68176.0,1.12577799]
[1729800810683,8.25707681,68177.0,68176.0,1.08024047]
[1729800811289,8.25707681,68177.0,68176.0,1.07824047]
[1729800814304,8.25707681,68177.0,68176.0,0.85025205]
[1729800814522,8.25707681,68177.0,68176.0,1.04017898]
[1729800814762,8.25707681,68177.0,68176.0,0.95274626]
[1729800814972,8.25707681,68177.0,68176.0,1.05524047]
[1729800815956,8.25707681,68177.0,68176.0,0.95274626]
[1729800816402,8.25707681,68177.0,68176.0,1.05524047]
[1729800817257,8.25707681,68177.0,68176.0,0.47794693]
[1729800817472,8.25707681,68177.0,68176.0,0.41899359]
[1729800817683,8.25707681,68177.0,68176.0,0.46473878]
[1729800817900,8.25707681,68177.0,68176.0,0.42099359]
[1729800819022,8.25707681,68177.0,68176.0,0.52264559]
[1729800819239,8.25707681,68177.0,68176.0,0.6251398]
[1729800819444,8.25707681,68177.0,68176.0,0.66888534]
[1729800819652,8.25707681,68177.0,68176.0,0.6251398]
[1729800820744,8.25707681,68177.0,68176.0,0.85224867]
[1729800821396,8.25707681,68177.0,68176.0,0.78663861]
[1729800822033,8.25707681,68177.0,68176.0,0.86664303]
[1729800822655,8.25707681,68177.0,68176.0,0.95414531]
[1729800823972,8.25707681,68177.0,68176.0,0.97602088]
[1729800824188,8.25707681,68177.0,68176.0,0.86664303]
[1729800825516,8.25707681,68177.0,68176.0,0.97601006]
[1729800825935,8.25707681,68177.0,68176.0,0.86664303]
[1729800827025,8.25707681,68177.0,68176.0,0.86667446]
[1729800829023,8.25707681,68177.0,68176.0,1.04837446]
[1729800829230,8.11040181,68177.0,68176.0,1.07137446]
[1729800829642,7.96372681,68177.0,68176.0,1.07137446]
[1729800830674,7.93439181,68177.0,68176.0,1.07137446]
[1729800831772,7.93439181,68177.0,68176.0,1.07140404]
[1729800831993,7.93439181,68177.0,68176.0,1.17389825]
[1729800831994,7.84638681,68177.0,68176.0,1.17389825]
[1729800832228,7.84638681,68177.0,68176.0,1.07140404]
[1729800833170,7.72756928,68177.0,68176.0,1.07140404]
[1729800833425,7.72756928,68177.0,68176.0,1.17389825]
[1729800833426,7.28892165,68177.0,68176.0,1.17389825]
[1729800833640,7.21131421,68177.0,68176.0,1.17389825]
[1729800834078,7.21131421,68177.0,68176.0,1.20325825]
[1729800834296,7.13199174,68177.0,68176.0,1.20325825]
[1729800834521,7.10265674,68177.0,68176.0,1.20325825]
[1729800834741,7.07332174,68177.0,68176.0,1.20325825]
[1729800834962,6.95598174,68177.0,68176.0,1.20325825]
[1729800835611,6.89731174,68177.0,68176.0,1.20325825]
[1729800835995,6.47725289,68177.0,68176.0,1.20325825]
[1729800836410,6.44791789,68177.0,68176.0,1.20326541]
[1729800836622,6.41858289,68177.0,68176.0,1.20326541]
[1729800837036,6.33057789,68177.0,68176.0,1.20326541]
[1729800837305,6.30124289,68177.0,68176.0,1.20326541]
[1729800837741,6.09556661,68177.0,68176.0,1.20326541]
[1729800837964,5.94996964,68177.0,68176.0,1.24887695]
[1729800838640,5.85315896,68177.0,68176.0,1.24887695]
[1729800838857,5.77693537,68177.0,68176.0,1.24887695]
[1729800839074,5.37623325,68177.0,68176.0,1.20326541]
[1729800839284,5.26319172,68177.0,68176.0,1.20326541]
[1729800839738,5.23385672,68177.0,68176.0,1.20326541]
[1729800839961,5.20452172,68177.0,68176.0,1.1007712]
[1729800840182,5.06368964,68177.0,68176.0,1.3726403]
[1729800840430,4.96465328,68177.0,68176.0,1.3726403]
[1729800840647,4.6787754,68177.0,68176.0,1.47513451]
[1729800840885,4.5393749,68177.0,68176.0,1.47513451]
[1729800841112,4.15164261,68177.0,68176.0,1.47513451]
[1729800841767,3.99522709,68177.0,68176.0,1.47513451]
[1729800842205,3.63383824,68177.0,68176.0,3.10633465]
[1729800842633,3.57516824,68177.0,68176.0,3.10633465]
[1729800842848,3.44641651,68177.0,68176.0,2.97504361]
[1729800843723,3.35841151,68177.0,68176.0,3.10631859]
[1729800843941,3.29974151,68177.0,68176.0,3.10631559]
[1729800844577,3.24107151,68177.0,68176.0,3.10613817]
[1729800844804,3.21173651,68177.0,68176.0,3.10613817]
[1729800845021,2.79167766,68177.0,68176.0,2.70318739]
[1729800845437,2.7799423,68177.0,68176.0,2.70318739]
[1729800845653,2.71499463,68177.0,68176.0,3.10601788]
[1729800845907,2.65632463,68177.0,68176.0,2.97477247]
[1729800846120,2.62698963,68177.0,68176.0,3.10594703]
[1729800846542,2.56831963,68177.0,68176.0,3.00345282]
[1729800846754,2.53898463,68177.0,68176.0,3.00345282]
[1729800847181,2.48031463,68177.0,68176.0,2.87227826]
[1729800847415,2.48031463,68177.0,68176.0,2.64623639]
[1729800847638,2.48031463,68177.0,68176.0,2.60069318]
[1729800847861,2.31824315,68177.0,68176.0,2.66713103]
[1729800848306,2.31824315,68177.0,68176.0,2.87211945]
[1729800848796,2.28890815,68177.0,68176.0,2.87211945]
[1729800849004,2.17156815,68177.0,68176.0,2.87211945]
[1729800849433,2.17156815,68177.0,68176.0,3.00307216]
[1729800849873,2.15906015,68177.0,68176.0,3.00307216]
[1729800850104,2.12153615,68177.0,68176.0,2.8719462]
[1729800850326,2.10112615,68177.0,68176.0,2.8719462]
[1729800851237,2.10112615,68177.0,68176.0,2.8619462]
[1729800851477,2.10112615,68177.0,68176.0,2.51459778]
[1729800851715,2.10112615,68177.0,68176.0,0.48149778]
[1729800851964,2.10112615,68177.0,68176.0,0.59078574]
[1729800852206,2.10112615,68177.0,68176.0,0.48149778]
[1729800852885,2.10112615,68177.0,68176.0,0.58149778]
[1729800855413,2.10112615,68177.0,68176.0,0.60449778]
[1729800857391,2.10112615,68177.0,68176.0,0.71378574]
[1729800857966,2.10112615,68177.0,68176.0,0.60449778]
[1729800859294,2.0960448,68177.0,68176.0,0.60449778]
[1729800859708,2.10145592,68177.0,68176.0,0.60449778]
[1729800860349,2.10145592,68177.0,68176.0,0.78115095]
[1729800863569,2.10145592,68177.0,68176.0,0.65006848]
[1729800863785,2.10145592,68177.0,68176.0,0.78120591]
[1729800865301,2.10145592,68177.0,68176.0,0.65006848]
[1729800868607,2.10145592,68177.0,68176.0,0.65002921]
[1729800870355,2.10145592,68177.0,68176.0,0.64002921]
[1729800870587,2.10145592,68177.0,68176.0,0.65002921]
[1729800870834,2.10145592,68177.0,68176.0,0.78113059]
[1729800874680,2.0960448,68177.0,68176.0,0.78113059]
[1729800874890,2.1014679,68177.0,68176.0,0.78113059]
[1729800879262,2.1014679,68177.0,68176.0,1.15222067]
[1729800879468,2.1014679,68177.0,68176.0,0.91862921]
[1729800881084,2.0960448,68177.0,68176.0,0.91862921]
[1729800881296,2.10145805,68177.0,68176.0,0.91862921]
[1729800888030,2.10145805,68177.0,68176.0,0.91882874]
[1729800890189,2.10145805,68177.0,68176.0,1.11265366]
[1729800890546,2.0960448,68177.0,68176.0,1.11265366]
[1729800890984,2.10145381,68177.0,68176.0,1.03305366]
[1729800891196,2.10145381,68177.0,68176.0,0.84405366]
[1729800892278,2.10145381,68177.0,68176.0,0.65022874]
[1729800895037,2.10145381,68177.0,68176.0,0.84427713]
[1729800895245,2.10145381,68177.0,68176.0,0.65022874]
[1729800896781,2.10145381,68177.0,68176.0,0.75271882]
[1729800897471,2.10145381,68177.0,68176.0,0.59119805]
[1729800897685,2.10145381,68177.0,68176.0,0.75298203]
[1729800901186,2.10145381,68177.0,68176.0,0.94716146]
[1729800902024,2.10145381,68177.0,68176.0,0.75298203]
[1729800903898,1.54972856,68177.0,68176.0,1.1682566]
[1729800904117,1.54972856,68177.0,68176.0,1.13047211]
[1729800904118,1.50866255,68177.0,68176.0,1.13047211]
[1729800904332,1.47497255,68177.0,68176.0,1.15983211]
[1729800904559,1.41630255,68177.0,68176.0,1.15983211]
[1729800904773,1.33190189,68177.0,68176.0,1.15983211]
[1729800905239,1.30256348,68177.0,68176.0,1.15983211]
[1729800905694,1.15588848,68177.0,68176.0,1.15983211]
[1729800906409,1.15588848,68177.0,68176.0,2.65983211]
[1729800906649,1.15588848,68177.0,68176.0,2.88632968]
[1729800907101,1.11187911,68177.0,68176.0,2.88632968]
[1729800907342,0.000826,68185.0,68184.0,0.012]
[1729800907589,0.000826,68202.0,68201.0,0.36111508]
[1729800907818,0.000826,68202.0,68201.0,0.85637694]
[1729800908257,0.000826,68202.0,68201.0,0.81127304]
[1729800908499,0.000826,68202.0,68201.0,0.70191218]
[1729800908767,0.000826,68202.0,68201.0,0.5994221]
[1729800909430,0.000826,68202.0,68201.0,0.65832498]
[1729800909638,0.000826,68202.0,68201.0,0.56891279]
[1729800909849,0.000826,68202.0,68201.0,0.63448012]
[1729800910119,0.000826,68202.0,68201.0,0.47269614]
[1729800910369,0.000826,68202.0,68201.0,0.5800985]
[1729800910592,0.000826,68202.0,68201.0,0.4187683]
[1729800910804,0.000826,68202.0,68201.0,0.48432532]
[1729800911253,0.000826,68202.0,68201.0,0.48232532]
[1729800911692,0.000826,68202.0,68201.0,0.4167683]
[1729800912125,0.000826,68202.0,68201.0,0.29712881]
[1729800912329,0.000826,68202.0,68201.0,0.15050381]
[1729800912541,0.187426,68202.0,68201.0,0.15050381]
[1729800913621,0.265726,68202.0,68201.0,0.15050381]
[1729800914915,0.27327847,68202.0,68201.0,0.15050381]
[1729800915584,0.01,68200.0,68186.0,0.22112642]
[1729800915831,0.0756,68199.0,68196.0,0.22112642]
[1729800916042,0.272,68198.0,68197.0,0.15050381]
[1729800916541,0.01,68188.0,68187.0,0.04372288]
[1729800916750,0.01,68188.0,68184.0,0.06558432]
[1729800916751,0.202059,68185.0,68184.0,0.28671074]
[1729800916955,0.52263916,68185.0,68184.0,0.28671074]
[1729800917157,0.32555849,68185.0,68184.0,0.28671074]
[1729800917295,0.42804857,68185.0,68184.0,0.06558432]
[1729800917508,0.53053865,68185.0,68184.0,0.06558432]
[1729800917968,0.38387965,68185.0,68184.0,0.06558432]
[1729800918166,0.3976299,68185.0,68184.0,0.06558432]
[1729800918314,0.48813073,68185.0,68184.0,0.06558432]
[1729800919012,0.47438048,68185.0,68184.0,0.06558432]
[1729800919209,0.47438048,68185.0,68171.0,0.146688]
[1729800919210,0.005,68181.0,68171.0,0.146688]
[1729800919414,0.005,68181.0,68179.0,0.22112642]
[1729800919623,0.005,68181.0,68180.0,0.15050381]
[1729800920698,0.15382199,68181.0,68180.0,0.15050381]
[1729800925944,0.15382199,68181.0,68168.0,0.001652]
[1729800925945,0.156677,68177.0,68168.0,0.001652]
[1729800926174,0.57749899,68177.0,68168.0,0.001652]
[1729800927051,0.58533206,68177.0,68168.0,0.001652]
[1729800931531,0.57749899,68177.0,68168.0,0.001652]
[1729800940322,0.53125588,68177.0,68168.0,0.001652]
[1729800943732,0.005,68169.0,68168.0,0.001652]
[1729800943937,0.005,68169.0,68167.0,0.001652]
[1729800943938,0.25927488,68168.0,68167.0,0.001652]
[1729800944146,0.36185376,68168.0,68167.0,0.001652]
[1729800944787,0.46443264,68168.0,68167.0,0.001652]
[1729800945219,0.44125376,68168.0,68167.0,0.001652]
[1729800945929,0.39713664,68168.0,68153.0,0.001658]
[1729800946150,0.44127976,68156.0,68153.0,0.001658]
[1729800946371,0.005,68157.0,68153.0,0.001658]
[1729800946594,0.15889746,68157.0,68153.0,0.001658]
[1729800947065,0.14889746,68165.0,68155.0,0.190552]
[1729800947283,0.14889746,68165.0,68156.0,0.146721]
[1729800947686,0.14889746,68161.0,68156.0,0.146721]
[1729800948364,0.14889746,68161.0,68155.0,0.190552]
[1729800949266,0.14889746,68161.0,68155.0,0.006652]
[1729800949267,0.14889746,68157.0,68155.0,0.006652]
[1729800950551,0.14889746,68157.0,68156.0,0.15050381]
[1729800957048,0.14889746,68157.0,68156.0,0.15215581]
[1729800957472,0.2006,68174.0,68157.0,0.1965]
[1729800957473,0.14889746,68161.0,68157.0,0.1965]
[1729800957678,0.14889746,68161.0,68158.0,0.15050381]
[1729800960683,0.01,68163.0,68158.0,0.15050381]
[1729800960684,0.2603,68180.0,68161.0,0.293422]
[1729800960940,0.005,68186.0,68165.0,0.0773]
[1729800960941,0.22112642,68176.0,68165.0,0.0773]
[1729800961153,0.01,68180.0,68173.0,0.146684]
[1729800961373,0.29556246,68183.0,68166.0,0.34993766]
[1729800961374,0.14889746,68183.0,68174.0,0.22780381]
[1729800961583,0.14889746,68179.0,68174.0,0.22780381]
[1729800962280,0.14889746,68175.0,68174.0,0.22780381]
[1729800962726,0.14889746,68176.0,68174.0,0.22780381]
[1729800964449,0.146672,68180.0,68174.0,0.22780381]
[1729800964676,0.14889746,68176.0,68174.0,0.22780381]
[1729800964891,0.39674847,68197.0,68180.0,0.0796]
[1729800965121,0.15389746,68195.0,68186.0,0.146657]
[1729800965333,0.15389746,68195.0,68186.0,0.15050381]
[1729800965334,0.15889746,68195.0,68186.0,0.15050381]
[1729800965558,0.15389746,68195.0,68186.0,0.15050381]
[1729800965785,0.14889746,68192.0,68186.0,0.15050381]
[1729800966015,0.14889746,68189.0,68186.0,0.15050381]
[1729800966244,0.147481,68187.0,68186.0,0.15050381]
[1729800967142,0.000826,68187.0,68186.0,0.15050381]
[1729800967358,0.147481,68187.0,68186.0,0.15050381]
[1729800972803,0.000826,68187.0,68186.0,0.15050381]
[1729800974198,0.147481,68187.0,68186.0,0.15050381]
[1729800975838,0.000826,68187.0,68186.0,0.15050381]
[1729800976675,0.000826,68187.0,68186.0,0.63830127]
[1729800976905,0.000826,68203.0,68201.0,0.148625]
[1729800977122,0.000826,68203.0,68201.0,0.53302881]
[1729800977564,0.000826,68203.0,68201.0,0.63302881]
[1729800979796,0.000826,68203.0,68201.0,0.63102881]
[1729800980028,0.000826,68203.0,68201.0,0.63302881]
[1729800981741,0.000826,68203.0,68201.0,0.86415523]
[1729800982163,0.000826,68203.0,68201.0,0.64302881]
[1729800995177,0.000826,68203.0,68201.0,0.66602881]
[1729801002901,0.000826,68203.0,68201.0,0.81492627]
[1729801004521,0.000826,68203.0,68202.0,0.517823]
[1729801004722,0.000826,68203.0,68202.0,0.71379202]
[1729801004952,0.000826,68203.0,68202.0,0.93967792]
[1729801005361,0.000826,68203.0,68202.0,0.87447301]
[1729801007071,0.000827,68207.0,68206.0,0.503514]
[1729801007293,0.000827,68207.0,68206.0,0.87138048]
[1729801007940,0.000827,68207.0,68206.0,0.93671363]
[1729801008348,0.000827,68207.0,68206.0,1.03222956]
[1729801009668,0.000827,68207.0,68206.0,1.25335598]
[1729801009669,1e-06,68207.0,68206.0,1.25335598]
[1729801009834,1e-06,68207.0,68206.0,1.03222956]
[1729801010039,0.000831,68237.0,68236.0,0.14655]
[1729801010242,0.000831,68237.0,68236.0,0.29705381]
[1729801015243,0.000831,68237.0,68236.0,0.15050381]
[1729801015458,0.147379,68237.0,68236.0,0.15050381]
[1729801022765,0.13854558,68237.0,68236.0,0.15050381]
[1729801028637,0.14954203,68237.0,68236.0,0.15050381]
[1729801029519,0.13854558,68237.0,68236.0,0.15050381]
[1729801030345,0.24092114,68237.0,68236.0,0.15050381]
[1729801032335,0.13854558,68237.0,68236.0,0.15050381]
[1729801032582,0.24092114,68237.0,68236.0,0.15050381]
[1729801032798,0.0751,68242.0,68236.0,0.15050381]
[1729801032799,0.00083,68244.0,68236.0,0.15050381]
[1729801033015,0.24891156,68243.0,68238.0,0.146545]
[1729801033233,0.10237556,68240.0,68239.0,0.15050381]
[1729801033444,0.10237556,68240.0,68239.0,0.29704681]
[1729801034544,0.147363,68244.0,68239.0,0.29704681]
[1729801034752,0.10237556,68240.0,68239.0,0.29704681]
[1729801036880,0.146535,68243.0,68240.0,0.1]
[1729801037089,0.00083,68244.0,68241.0,0.15050381]
[1729801037290,0.00083,68244.0,68241.0,0.29704281]
[1729801037725,0.10237556,68242.0,68241.0,0.29704281]
[1729801038372,0.10237556,68242.0,68241.0,0.15050381]
[1729801038790,0.10237556,68242.0,68241.0,0.29704281]
[1729801039646,0.10237556,68242.0,68241.0,0.15050381]
[1729801040297,0.10237556,68242.0,68241.0,0.29704281]
[1729801041119,0.10241556,68242.0,68241.0,0.29704281]
[1729801042783,4e-05,68242.0,68241.0,0.29704281]
[1729801043204,4e-05,68242.0,68241.0,0.53984281]
[1729801043819,0.10241556,68242.0,68241.0,0.53984281]
[1729801046017,4e-05,68242.0,68241.0,0.53984281]
[1729801047386,4e-05,68242.0,68241.0,0.63984281]
[1729801047590,4e-05,68242.0,68241.0,0.64184281]
[1729801049176,4e-05,68242.0,68241.0,0.63984281]
[1729801049901,0.10241556,68242.0,68241.0,0.63984281]
[1729801050102,4e-05,68242.0,68241.0,0.63984281]
[1729801051870,4e-05,68242.0,68241.0,0.64184281]
[1729801054798,4e-05,68242.0,68241.0,0.80304931]
[1729801054984,4e-05,68242.0,68241.0,0.80303078]
[1729801055230,4e-05,68242.0,68241.0,0.86850833]
[1729801055452,4e-05,68242.0,68241.0,0.80303078]
[1729801055657,4e-05,68242.0,68241.0,0.80103078]
[1729801056502,4e-05,68242.0,68241.0,0.80303078]
[1729801057350,4e-05,68242.0,68241.0,0.86851469]
[1729801057565,4e-05,68242.0,68241.0,0.86651469]
[1729801057777,4e-05,68242.0,68241.0,0.80103078]
[1729801058014,0.000865,68242.0,68241.0,0.86650814]
[1729801058226,0.000865,68242.0,68241.0,0.86850814]
[1729801058862,0.000865,68242.0,68241.0,0.86650814]
[1729801059301,0.000865,68242.0,68241.0,1.05869927]
[1729801059525,0.000865,68242.0,68241.0,0.91219512]
[1729801059738,0.000865,68242.0,68241.0,0.80303078]
[1729801060183,0.000865,68242.0,68241.0,0.81303078]
[1729801060403,0.000865,68242.0,68241.0,1.00696626]
[1729801061531,0.000865,68242.0,68241.0,1.02996626]
[1729801061971,0.00083,68246.0,68241.0,1.02996626]
[1729801061972,0.146478,68270.0,68252.0,0.476215]
[1729801062209,0.45228815,68271.0,68252.0,0.62671881]
[1729801062420,0.146482,68268.0,68252.0,0.67031135]
[1729801062645,0.14850415,68267.0,68252.0,0.62871881]
[1729801063279,0.29498715,68267.0,68252.0,0.62871881]
[1729801063485,0.146481,68268.0,68252.0,0.62871881]
[1729801063690,0.14850415,68268.0,68252.0,0.67226559]
[1729801063908,0.146484,68267.0,68252.0,0.67226559]
[1729801064247,0.14850415,68268.0,68252.0,0.62871881]
[1729801065746,0.146485,68267.0,68252.0,0.62871881]
[1729801065962,0.14850415,68268.0,68252.0,0.62871881]
[1729801067687,0.146483,68267.0,68252.0,0.62871881]
[1729801069633,0.146483,68267.0,68252.0,0.63852838]
[1729801070500,0.146483,68267.0,68252.0,0.63652838]
[1729801071576,0.146483,68267.0,68252.0,0.63852838]
[1729801072238,0.14850415,68268.0,68252.0,0.63852838]
[1729801072672,0.14850415,68264.0,68252.0,0.63652838]
[1729801073556,0.14850415,68264.0,68252.0,0.63852838]
[1729801076241,0.14850415,68264.0,68252.0,0.6820643]
[1729801078405,0.14850415,68264.0,68252.0,0.63852838]
[1729801078810,0.14850415,68264.0,68252.0,0.63652838]
[1729801079030,0.441964,68268.0,68252.0,0.54921881]
[1729801079031,0.14933415,68256.0,68252.0,0.54921881]
[1729801079228,0.14933415,68256.0,68252.0,0.59274685]
[1729801079812,0.14933415,68256.0,68252.0,0.54921881]
[1729801080229,0.00083,68256.0,68252.0,0.54921881]
[1729801081720,0.00083,68256.0,68252.0,0.39701881]
[1729801082147,0.00083,68256.0,68252.0,0.4405679]
[1729801082372,0.00083,68256.0,68252.0,0.39701881]
[1729801082575,0.00083,68256.0,68252.0,0.4405679]
[1729801082997,0.00083,68256.0,68252.0,0.39701881]
[1729801083227,0.00083,68256.0,68252.0,0.4405679]
[1729801084084,0.00083,68256.0,68252.0,0.55491881]
[1729801084297,0.00083,68256.0,68252.0,0.69554244]
[1729801084428,0.00083,68256.0,68252.0,0.85636302]
[1729801085215,0.00083,68256.0,68252.0,0.79103939]
[1729801086287,0.14928938,68253.0,68252.0,0.15050381]
[1729801087881,0.23238938,68253.0,68252.0,0.15050381]
[1729801088080,0.37890238,68253.0,68252.0,0.15050381]
[1729801090454,0.38890238,68253.0,68252.0,0.15050381]
[1729801090645,0.156517,68251.0,68250.0,8.485e-05]
[1729801091109,0.237617,68251.0,68250.0,8.485e-05]
[1729801092381,0.384717,68251.0,68250.0,8.485e-05]
[1729801093430,0.389717,68251.0,68250.0,8.485e-05]
[1729801096533,0.389717,68251.0,68237.0,0.22277642]
[1729801096534,0.015,68238.0,68237.0,0.22277642]
[1729801096729,0.53560438,68238.0,68237.0,0.22277642]
[1729801097145,0.53560438,68238.0,68237.0,0.00165]
[1729801097380,0.54560438,68238.0,68237.0,0.00165]
[1729801101986,0.69610819,68238.0,68237.0,0.00165]
[1729801102190,0.70706722,68238.0,68237.0,0.00165]
[1729801103038,0.55656341,68238.0,68237.0,0.00165]
[1729801105416,0.54656341,68238.0,68237.0,0.00165]
[1729801105667,0.55656341,68238.0,68237.0,0.00165]
[1729801105884,0.54560438,68238.0,68237.0,0.00165]
[1729801109122,0.39640438,68238.0,68237.0,0.00165]
[1729801109335,0.39140438,68238.0,68237.0,0.00165]
[1729801109988,0.39640438,68238.0,68237.0,0.00165]
[1729801110924,0.39140438,68238.0,68237.0,0.00165]
[1729801111366,0.39640438,68238.0,68237.0,0.00165]
[1729801111779,0.40140438,68238.0,68237.0,0.00165]
[1729801113758,0.40140438,68238.0,68223.0,0.37042642]
[1729801113759,0.161575,68224.0,68223.0,0.22112642]
[1729801113963,0.45849376,68224.0,68223.0,0.22112642]
[1729801114751,0.45849376,68224.0,68215.0,0.22112642]
[1729801114752,0.005,68221.0,68215.0,0.22112642]
[1729801114906,0.30005238,68216.0,68215.0,0.22112642]
[1729801115314,0.30505238,68216.0,68215.0,0.15050381]
[1729801115771,0.30505238,68216.0,68202.0,0.001652]
[1729801115772,0.01,68212.0,68205.0,0.0797]
[1729801115984,0.14845938,68207.0,68205.0,0.0797]
[1729801117327,0.14845938,68207.0,68206.0,0.15050381]
[1729801117546,0.29507138,68207.0,68206.0,0.15050381]
[1729801119058,0.30507138,68207.0,68206.0,0.15050381]
[1729801119931,0.161621,68203.0,68202.0,0.001652]
[1729801120143,0.45853976,68203.0,68202.0,0.001652]
[1729801120571,0.31008038,68203.0,68202.0,0.001652]
[1729801120774,0.45853976,68203.0,68202.0,0.001652]
[1729801121237,0.42322056,68203.0,68202.0,0.001652]
[1729801121873,0.31008038,68203.0,68202.0,0.001652]
[1729801122747,0.161621,68203.0,68202.0,0.001652]
[1729801122966,0.31008038,68203.0,68202.0,0.001652]
[1729801130895,0.45853976,68203.0,68202.0,0.001652]
[1729801131100,0.46953896,68203.0,68202.0,0.001652]
[1729801131775,0.45853976,68203.0,68202.0,0.001652]
[1729801132413,0.56403994,68203.0,68202.0,0.001652]
[1729801132910,0.45853976,68203.0,68202.0,0.001652]
[1729801141056,0.15664,68194.0,68193.0,0.22112642]
[1729801141257,0.30509938,68194.0,68193.0,0.22112642]
[1729801142271,0.30509938,68194.0,68190.0,0.147352]
[1729801142272,0.146646,68191.0,68190.0,0.147352]
[1729801142685,0.151646,68191.0,68190.0,0.147352]
[1729801143363,0.45856476,68191.0,68190.0,0.001652]
[1729801143576,0.31010538,68191.0,68190.0,0.001652]
[1729801146390,0.156646,68191.0,68190.0,0.225652]
[1729801146603,0.31010538,68191.0,68190.0,0.225652]
[1729801149547,0.31014538,68191.0,68190.0,0.225652]
[1729801149748,0.31014538,68191.0,68190.0,0.001652]
[1729801150645,0.45860476,68191.0,68190.0,0.001652]
[1729801150879,0.31014538,68191.0,68190.0,0.001652]
[1729801151221,0.32014538,68191.0,68190.0,0.001652]
[1729801152046,0.156679,68176.0,68165.0,0.001652]
[1729801152276,0.30513838,68176.0,68171.0,0.1443]
[1729801152855,0.31013838,68176.0,68171.0,0.1443]
[1729801153460,0.34589491,68176.0,68171.0,0.1443]
[1729801154020,0.34589491,68176.0,68166.0,0.1443]
[1729801156771,0.32389089,68176.0,68166.0,0.1443]
[1729801156991,0.156694,68169.0,68166.0,0.1443]
[1729801157217,0.30515338,68169.0,68166.0,0.1443]
[1729801160626,0.30519338,68169.0,68166.0,0.1443]
[1729801161467,0.30019338,68169.0,68166.0,0.1443]
[1729801161675,0.30519338,68169.0,68166.0,0.1443]
[1729801168797,0.30019338,68169.0,68166.0,0.1443]
[1729801169458,0.29519338,68169.0,68168.0,0.15216381]
[1729801169918,0.30019338,68169.0,68168.0,0.15216381]
[1729801170831,0.31019338,68169.0,68168.0,0.00166]
[1729801175895,0.31019338,68169.0,68168.0,0.15216381]
[1729801176960,0.32394134,68169.0,68168.0,0.15216381]
[1729801177629,0.31894134,68169.0,68168.0,0.15216381]
[1729801178502,0.32394134,68169.0,68168.0,0.15216381]
[1729801179573,0.31019338,68169.0,68168.0,0.15216381]
[1729801181916,0.30519338,68169.0,68168.0,0.15216381]
[1729801182346,0.146734,68169.0,68168.0,0.38846381]
[1729801182569,4e-05,68169.0,68168.0,0.38846381]
[1729801182807,4e-05,68169.0,68168.0,0.53515981]
[1729801183014,4e-05,68169.0,68168.0,0.38846381]
[1729801183223,4e-05,68169.0,68168.0,0.53515981]
[1729801183437,4e-05,68169.0,68168.0,0.38846381]
[1729801185447,0.146734,68169.0,68168.0,0.38846381]
[1729801186217,4e-05,68169.0,68168.0,0.38846381]
[1729801186897,4e-05,68169.0,68168.0,0.53515981]
[1729801187322,4e-05,68169.0,68168.0,0.63515981]
[1729801188430,4e-05,68169.0,68168.0,0.63715981]
[1729801189854,4e-05,68169.0,68168.0,0.63515981]
[1729801191135,4e-05,68169.0,68168.0,0.63715981]
[1729801191340,4e-05,68169.0,68168.0,0.63515981]
[1729801195608,4e-05,68169.0,68168.0,0.67897031]
[1729801196853,4e-05,68169.0,68168.0,0.79691435]
[1729801197055,4e-05,68169.0,68168.0,0.88453536]
[1729801197281,4e-05,68169.0,68168.0,0.94537373]
[1729801197720,4e-05,68169.0,68168.0,0.94737373]
[1729801199190,4e-05,68169.0,68168.0,1.03497039]
[1729801199915,4e-05,68169.0,68168.0,1.03488576]
[1729801201071,4e-05,68169.0,68168.0,1.25601218]
[1729801201251,4e-05,68169.0,68168.0,0.94729174]
[1729801201805,4e-05,68169.0,68168.0,1.0567481]
[1729801202032,4e-05,68169.0,68168.0,0.94729174]
[1729801202694,4e-05,68169.0,68168.0,0.90826337]
[1729801202953,4e-05,68169.0,68168.0,0.79883236]
[1729801203172,4e-05,68169.0,68168.0,0.79683236]
[1729801203405,4e-05,68169.0,68168.0,0.88431612]
[1729801203631,4e-05,68169.0,68168.0,0.63515981]
[1729801207697,0.13887,68169.0,68168.0,0.63515981]
[1729801210401,0.13887,68169.0,68168.0,0.63715981]
[1729801210825,0.13887,68169.0,68168.0,0.68094163]
[1729801211500,0.13887,68169.0,68168.0,0.79893062]
[1729801211709,0.13887,68169.0,68168.0,0.88648589]
[1729801213182,0.13887,68169.0,68168.0,0.90837471]
[1729801213599,0.13887,68169.0,68168.0,0.79893062]
[1729801214640,0.13887,68169.0,68168.0,0.80893062]
[1729801215309,0.13887,68169.0,68168.0,0.87760685]
[1729801217781,0.13887,68169.0,68168.0,0.87755058]
[1729801218598,0.000867,68176.0,68168.0,0.87755058]
[1729801218599,0.000867,68176.0,68174.0,0.181683]
[1729801218885,0.01375767,68184.0,68183.0,0.479664]